fUSD/lending_fUSD_20241128
["ID","MTS","AMOUNT","RATE_DAILY","PERIOD"]
[343666719,1732813845217,-500.0,9.999e-05,2]
[343666720,1732813845228,-500.0,9.999e-05,2]
[343666721,1732813845239,-500.0,9.999e-05,2]
[343666722,1732813845250,-635.38677325,9.999e-05,2]
[343666723,1732813845261,-500.0,9.999e-05,2]
[343666724,1732813845273,-431.96,9.999e-05,2]
[343666725,1732813845284,-500.0,9.999e-05,2]
[343666726,1732813845296,-500.0,9.999e-05,2]
[343666727,1732813845308,-500.0,9.999e-05,2]
[343666728,1732813845319,-500.0,9.999e-05,2]
[343666729,1732813845331,-500.0,9.999e-05,2]
[343666730,1732813845344,-500.0,9.999e-05,2]
[343666731,1732813845355,-500.0,9.999e-05,2]
[343666732,1732813845367,-500.0,9.999e-05,2]
[343666733,1732813845380,-444.5,9.999e-05,2]
[343666734,1732813845391,-500.0,9.999e-05,2]
[343666735,1732813845402,-500.0,9.999e-05,2]
[343666736,1732813845415,-500.0,9.999e-05,2]
[343666737,1732813845426,-217.66,9.999e-05,2]
[343666738,1732813845438,-500.0,9.999e-05,2]
[343666739,1732813845449,-500.0,9.999e-05,2]
[343666740,1732813845460,-500.0,9.999e-05,2]
[343666741,1732813845471,-500.0,9.999e-05,2]
[343666742,1732813845482,-542.93,9.999e-05,2]
[343666743,1732813845493,-500.0,9.999e-05,2]
[343666744,1732813845504,-500.0,9.999e-05,2]
[343666745,1732813845517,-500.0,9.999e-05,2]
[343666746,1732813845528,-500.0,9.999e-05,2]
[343666747,1732813845539,-500.0,9.999e-05,2]
[343666748,1732813845550,-497.46385146,9.999e-05,2]
[343666749,1732813845561,-500.0,9.999e-05,2]
[343666751,1732813845573,-251.20578469,9.999e-05,2]
[343666753,1732813845584,-500.61031749,9.999e-05,2]
[343666755,1732813845595,-500.0,9.999e-05,2]
[343666757,1732813845607,-500.0,9.999e-05,2]
[343666759,1732813845618,-500.0,9.999e-05,2]
[343666760,1732813845631,-593.65,9.999e-05,2]
[343666761,1732813845642,-500.0,9.999e-05,2]
[343666762,1732813845654,-500.0,9.999e-05,2]
[343666763,1732813845665,-500.0,9.999e-05,2]
[343666764,1732813845676,-623.64,9.999e-05,2]
[343666765,1732813845687,-500.0,9.999e-05,2]
[343666767,1732813845698,-500.0,9.999e-05,2]
[343666768,1732813845709,-500.0,9.999e-05,2]
[343666769,1732813845721,-500.0,9.999e-05,2]
[343666771,1732813845733,-500.0,9.999e-05,2]
[343666774,1732813845744,-500.0,9.999e-05,2]
[343666775,1732813845756,-477.54,9.999e-05,2]
[343666776,1732813845768,-500.0,9.999e-05,2]
[343666777,1732813845780,-500.0,9.999e-05,2]
[343666778,1732813845792,-500.0,9.999e-05,2]
[343666779,1732813845803,-500.0,9.999e-05,2]
[343666780,1732813845817,-500.0,9.999e-05,2]
[343666781,1732813845828,-556.94,9.999e-05,2]
[343666782,1732813845841,-501.61175604,9.999e-05,2]
[343666783,1732813845852,-500.0,9.999e-05,2]
[343666784,1732813845863,-500.0,9.999e-05,2]
[343666785,1732813845875,-500.0,9.999e-05,2]
[343666786,1732813845887,-500.0,9.999e-05,2]
[343666787,1732813845898,-500.0,9.999e-05,2]
[343666788,1732813845910,-500.0,9.999e-05,2]
[343666789,1732813845921,-157.8,9.999e-05,2]
[343666790,1732813845932,-500.0,9.999e-05,2]
[343666791,1732813845944,-500.0,9.999e-05,2]
[343666792,1732813845955,-500.0,9.999e-05,2]
[343666793,1732813845966,-500.0,9.999e-05,2]
[343666794,1732813845978,-500.0,9.999e-05,2]
[343666795,1732813845990,-500.0,9.999e-05,2]
[343666796,1732813846001,-500.0,9.999e-05,2]
[343666797,1732813846013,-512.44,9.999e-05,2]
[343666798,1732813846024,-500.0,9.999e-05,2]
[343666799,1732813846035,-500.0,9.999e-05,2]
[343666800,1732813846047,-500.0,9.999e-05,2]
[343666801,1732813846059,-500.0,9.999e-05,2]
[343666802,1732813846069,-310.82,9.999e-05,2]
[343666803,1732813846080,-500.0,9.999e-05,2]
[343666804,1732813846092,-500.0,9.999e-05,2]
[343666805,1732813846104,-500.0,9.999e-05,2]
[343666806,1732813846116,-500.0,9.999e-05,2]
[343666807,1732813846127,-500.0,9.999e-05,2]
[343666809,1732813846138,-500.0,9.999e-05,2]
[343666811,1732813846148,-500.0,9.999e-05,2]
[343666813,1732813846161,-500.0,9.999e-05,2]
[343666815,1732813846177,-380.72,9.999e-05,2]
[343666817,1732813846188,-500.0,9.999e-05,2]
[343666820,1732813846198,-500.0,9.999e-05,2]
[343666822,1732813846210,-601.46,9.999e-05,2]
[343666824,1732813846220,-500.0,9.999e-05,2]
[343666826,1732813846231,-531.86,9.999e-05,2]
[343666827,1732813846242,-500.0,9.999e-05,2]
[343666828,1732813846253,-500.0,9.999e-05,2]
[343666829,1732813846266,-500.0,9.999e-05,2]
[343666830,1732813846276,-500.0,9.999e-05,2]
[343666831,1732813846287,-500.0,9.999e-05,2]
[343666832,1732813846299,-195.76,9.999e-05,2]
[343666833,1732813846309,-500.0,9.999e-05,2]
[343666834,1732813846320,-500.0,9.999e-05,2]
[343666835,1732813846331,-500.0,9.999e-05,2]
[343666836,1732813846345,-500.0,9.999e-05,2]
[343666837,1732813846356,-500.0,9.999e-05,2]
[343666838,1732813846606,-500.0,9.999e-05,2]
[343666839,1732813846633,-500.0,9.999e-05,2]
[343666840,1732813846647,-500.0,9.999e-05,2]
[343666841,1732813846656,-500.0,9.999e-05,2]
[343666842,1732813846665,-500.0,9.999e-05,2]
[343666843,1732813846675,-500.0,9.999e-05,2]
[343666844,1732813846684,-500.0,9.999e-05,2]
[343666845,1732813846693,-500.0,9.999e-05,2]
[343666846,1732813846702,-244.91,9.999e-05,2]
[343666847,1732813846711,-500.0,9.999e-05,2]
[343666848,1732813846721,-500.0,9.999e-05,2]
[343666849,1732813846733,-500.0,9.999e-05,2]
[343666850,1732813846742,-500.0,9.999e-05,2]
[343666851,1732813846751,-500.0,9.999e-05,2]
[343666852,1732813846761,-500.0,9.999e-05,2]
[343666853,1732813846771,-500.0,9.999e-05,2]
[343666854,1732813846780,-500.0,9.999e-05,2]
[343666855,1732813846790,-500.0,9.999e-05,2]
[343666856,1732813846800,-500.0,9.999e-05,2]
[343666857,1732813846810,-500.0,9.999e-05,2]
[343666858,1732813846819,-500.0,9.999e-05,2]
[343666859,1732813846828,-500.0,9.999e-05,2]
[343666860,1732813846845,-500.0,9.999e-05,2]
[343666861,1732813846855,-554.6,9.999e-05,2]
[343666862,1732813846865,-500.0,9.999e-05,2]
[343666863,1732813846874,-327.14,9.999e-05,2]
[343666864,1732813846884,-500.0,9.999e-05,2]
[343666865,1732813846894,-545.88,9.999e-05,2]
[343666866,1732813846903,-500.0,9.999e-05,2]
[343666867,1732813846913,-500.0,9.999e-05,2]
[343666868,1732813846922,-500.0,9.999e-05,2]
[343666869,1732813846932,-500.0,9.999e-05,2]
[343666870,1732813846941,-500.0,9.999e-05,2]
[343666871,1732813846951,-500.0,9.999e-05,2]
[343666872,1732813846961,-500.0,9.999e-05,2]
[343666873,1732813846970,-500.0,9.999e-05,2]
[343666874,1732813846980,-571.82,9.999e-05,2]
[343666875,1732813846989,-500.0,9.999e-05,2]
[343666876,1732813846998,-638.96079968,9.999e-05,2]
[343666877,1732813847007,-500.0,9.999e-05,2]
[343666878,1732813847017,-500.0,9.999e-05,2]
[343666879,1732813847027,-424.54,9.999e-05,2]
[343666880,1732813847036,-500.0,9.999e-05,2]
[343666881,1732813847045,-500.0,9.999e-05,2]
[343666882,1732813847054,-500.0,9.999e-05,2]
[343666883,1732813847064,-500.0,9.999e-05,2]
[343666884,1732813847073,-500.0,9.999e-05,2]
[343666885,1732813847083,-500.0,9.999e-05,2]
[343666886,1732813847093,-500.0,9.999e-05,2]
[343666887,1732813847102,-317.18,9.999e-05,2]
[343666888,1732813847111,-500.0,9.999e-05,2]
[343666889,1732813847120,-500.0,9.999e-05,2]
[343666890,1732813847128,-204.76,9.999e-05,2]
[343666891,1732813847138,-71721.90240415,9.999e-05,2]
[343666892,1732813847147,-212.65,9.999e-05,2]
[343666893,1732813847156,-500.0,9.999e-05,2]
[343666894,1732813847165,-500.0,9.999e-05,2]
[343666895,1732813847174,-177.44,9.999e-05,2]
[343666896,1732813847183,-500.0,9.999e-05,2]
[343666897,1732813847194,-309.75,9.999e-05,2]
[343666898,1732813847204,-500.0,9.999e-05,2]
[343666899,1732813847213,-642.59,9.999e-05,2]
[343666900,1732813847224,-500.0,9.999e-05,2]
[343666901,1732813847234,-500.0,9.999e-05,2]
[343666902,1732813847244,-425.37601474,9.999e-05,2]
[343666903,1732813847254,-368.305,9.999e-05,2]
[343666904,1732813847265,-390.26604112,9.999e-05,2]
[343666905,1732813847274,-500.0,9.999e-05,2]
[343666906,1732813847284,-500.0,9.999e-05,2]
[343666907,1732813847294,-314.88,9.999e-05,2]
[343666908,1732813847303,-500.0,9.999e-05,2]
[343666909,1732813847314,-189.52299376,9.999e-05,2]
[343666910,1732813847323,-545.35,9.999e-05,2]
[343666911,1732813847334,-545.35,9.999e-05,2]
[343666912,1732813847343,-545.35,9.999e-05,2]
[343666913,1732813847352,-545.35,9.999e-05,2]
[343666914,1732813847361,-545.35,9.999e-05,2]
[343666915,1732813847370,-545.35,9.999e-05,2]
[343666916,1732813847380,-545.35,9.999e-05,2]
[343666917,1732813847389,-545.35,9.999e-05,2]
[343666918,1732813847398,-545.35,9.999e-05,2]
[343666919,1732813847407,-199.49,9.999e-05,2]
[343666920,1732813847417,-545.35,9.999e-05,2]
[343666921,1732813847428,-545.35,9.999e-05,2]
[343666922,1732813847438,-545.35,9.999e-05,2]
[343666923,1732813847447,-545.35,9.999e-05,2]
[343666924,1732813847457,-545.35,9.999e-05,2]
[343666925,1732813847466,-545.35,9.999e-05,2]
[343666926,1732813847476,-545.35,9.999e-05,2]
[343666927,1732813847485,-545.4037698,9.999e-05,2]
[343666928,1732813847494,-500.0,9.999e-05,2]
[343666929,1732813847504,-500.0,9.999e-05,2]
[343666930,1732813847514,-500.0,9.999e-05,2]
[343666931,1732813847523,-500.0,9.999e-05,2]
[343666932,1732813847533,-500.0,9.999e-05,2]
[343666933,1732813847543,-500.0,9.999e-05,2]
[343666934,1732813847551,-500.0,9.999e-05,2]
[343666935,1732813847562,-500.0,9.999e-05,2]
[343666936,1732813847572,-500.0,9.999e-05,2]
[343666937,1732813847581,-500.0,9.999e-05,2]
[343666938,1732813847594,-614.73787743,9.999e-05,2]
[343666939,1732813847604,-1155.26,9.999e-05,2]
[343666940,1732813847614,-1155.26,9.999e-05,2]
[343666941,1732813847623,-350.27,9.999e-05,2]
[343666942,1732813847633,-1155.26,9.999e-05,2]
[343666943,1732813847643,-1155.26,9.999e-05,2]
[343666944,1732813847652,-1155.26,9.999e-05,2]
[343666945,1732813847663,-1155.26,9.999e-05,2]
[343666946,1732813847672,-1155.26,9.999e-05,2]
[343666947,1732813847681,-1155.26,9.999e-05,2]
[343666948,1732813847690,-1155.26,9.999e-05,2]
[343666949,1732813847699,-1155.26,9.999e-05,2]
[343666950,1732813847708,-1155.26,9.999e-05,2]
[343666951,1732813847718,-1155.26,9.999e-05,2]
[343666952,1732813847730,-1155.26,9.999e-05,2]
[343666953,1732813847740,-1155.26,9.999e-05,2]
[343666954,1732813847750,-1155.26,9.999e-05,2]
[343666955,1732813847760,-1155.26,9.999e-05,2]
[343666956,1732813847770,-1155.26,9.999e-05,2]
[343666957,1732813847781,-500.0,9.999e-05,2]
[343666958,1732813847791,-1155.26,9.999e-05,2]
[343666959,1732813847803,-500.0,9.999e-05,2]
[343666960,1732813847814,-1155.31604658,9.999e-05,2]
[343666961,1732813847824,-428.34194362,9.999e-05,2]
[343666962,1732813847836,-532.4,9.999e-05,2]
[343666963,1732813847846,-532.4,9.999e-05,2]
[343666964,1732813847856,-532.4,9.999e-05,2]
[343666965,1732813847866,-532.4,9.999e-05,2]
[343666966,1732813847875,-532.4,9.999e-05,2]
[343666967,1732813847885,-532.4,9.999e-05,2]
[343666968,1732813847895,-532.4,9.999e-05,2]
[343666969,1732813847904,-532.4,9.999e-05,2]
[343666970,1732813847914,-532.4,9.999e-05,2]
[343666971,1732813847923,-532.4,9.999e-05,2]
[343666972,1732813847932,-532.4,9.999e-05,2]
[343666973,1732813847942,-532.4,9.999e-05,2]
[343666974,1732813847952,-532.4,9.999e-05,2]
[343666975,1732813847962,-532.4,9.999e-05,2]
[343666976,1732813847972,-532.4,9.999e-05,2]
[343666977,1732813847981,-532.46113083,9.999e-05,2]
[343666978,1732813847991,-1367.39,9.999e-05,2]
[343666979,1732813848001,-1367.39,9.999e-05,2]
[343666980,1732813848010,-1367.39,9.999e-05,2]
[343666981,1732813848020,-1367.39,9.999e-05,2]
[343666982,1732813848029,-1367.39,9.999e-05,2]
[343666983,1732813848039,-1367.39,9.999e-05,2]
[343666984,1732813848048,-1367.39,9.999e-05,2]
[343666985,1732813848057,-1367.39,9.999e-05,2]
[343666986,1732813848067,-1367.39,9.999e-05,2]
[343666987,1732813848076,-1367.39,9.999e-05,2]
[343666988,1732813848088,-1367.39,9.999e-05,2]
[343666989,1732813848098,-1367.39,9.999e-05,2]
[343666990,1732813848108,-1367.39,9.999e-05,2]
[343666991,1732813848117,-1367.39,9.999e-05,2]
[343666992,1732813848127,-1367.39,9.999e-05,2]
[343666993,1732813848136,-1367.6104,9.999e-05,2]
[343666994,1732813848146,-1008.02,9.999e-05,2]
[343666995,1732813848155,-1008.02,9.999e-05,2]
[343666996,1732813848165,-1008.02,9.999e-05,2]
[343666997,1732813848175,-1008.02,9.999e-05,2]
[343666998,1732813848184,-1008.02,9.999e-05,2]
[343666999,1732813848194,-1008.02,9.999e-05,2]
[343667000,1732813848203,-1008.02,9.999e-05,2]
[343667001,1732813848213,-1008.02,9.999e-05,2]
[343667002,1732813848223,-1008.02,9.999e-05,2]
[343667003,1732813848233,-1008.02,9.999e-05,2]
[343667004,1732813848243,-1008.02,9.999e-05,2]
[343667005,1732813848253,-1008.02,9.999e-05,2]
[343667006,1732813848262,-1008.02,9.999e-05,2]
[343667007,1732813848272,-1008.02,9.999e-05,2]
[343667008,1732813848282,-1008.02,9.999e-05,2]
[343667009,1732813848291,-1008.02,9.999e-05,2]
[343667010,1732813848301,-1008.18163338,9.999e-05,2]
[343667011,1732813848310,-390.26604112,9.999e-05,2]
[343667012,1732813848320,-30000.0,9.999e-05,2]
[343667013,1732813848329,-390.26604112,0.0001,2]
[343667014,1732813848341,-228384.84910485,0.0001,2]
[343667015,1732813849009,-740.5,9.897e-05,2]
[343667016,1732813849020,-259.5,9.897e-05,2]
[343667017,1732813849031,-241.7,9.996e-05,2]
[343667018,1732813849043,-258.3,9.996e-05,2]
[343667019,1732813849053,-1823.9186989,9.997e-05,2]
[343667020,1732813849065,-3167.29915925,9.997e-05,2]
[343667021,1732813849089,-31799.53882954,9.997e-05,2]
[343667022,1732813849102,-13301.34632884,9.997e-05,2]
[343667023,1732813849114,-3755.03476905,9.997e-05,2]
[343667024,1732813849126,-290689.20732961,9.997e-05,2]
[343667025,1732813849136,-583.22741063,9.997e-05,2]
[343667026,1732813849145,-2288389.89571379,0.0001,2]
[343667027,1732813849160,-229063.10522815,0.0001,2]
[343667028,1732813849286,-1963.90086244,0.0001,2]
[343667029,1732813849525,-500.0,9.996e-05,2]
[343667030,1732813849535,-269.99617321,9.997e-05,2]
[343667031,1732813849546,-500.0,9.997e-05,2]
[343667032,1732813849555,-2050.57341016,0.0001,2]
[343667033,1732813849570,-9497.5,0.0001,2]
[343667034,1732813849589,-19033.55142453,0.0001,2]
[343667035,1732813849608,-6012.52863072,0.0001,2]
[343667036,1732813849620,-2104.97979798,0.0001,2]
[343667037,1732813850004,-501.52118832,9.997e-05,2]
[343667038,1732813850014,-10135.04384169,0.0001,2]
[343667039,1732813850026,-760.903,0.0001,2]
[343667040,1732813850037,-476.348,0.0001,2]
[343667041,1732813850049,-347.67304272,0.0001,2]
[343667042,1732813850065,-1445.13923384,0.0001,2]
[343667043,1732813902614,50000.0,0.00011,10]
[343667044,1732813994544,-3238.5929,9.896e-05,2]
[343667045,1732813994567,-498.9,9.896e-05,2]
[343667046,1732813994587,-499.22,9.896e-05,2]
[343667047,1732813994611,-497.25,9.896e-05,2]
[343667048,1732813994633,-500.02,9.897e-05,2]
[343667049,1732813994654,-507.1,9.897e-05,2]
[343667050,1732813994675,-2500.0,9.897e-05,2]
[343667051,1732813994700,-250000.00000001,9.99e-05,2]
[343667052,1732813994722,-150.0,9.995e-05,2]
[343667053,1732813994745,-491.85,9.996e-05,2]
[343667054,1732813994771,-508.79,9.996e-05,2]
[343667055,1732813994793,-500.0,9.996e-05,2]
[343667056,1732813994817,-500.0,9.996e-05,2]
[343667057,1732813994839,-500.0,9.996e-05,2]
[343667058,1732813994864,-500.0,9.996e-05,2]
[343667059,1732813994887,-500.0,9.996e-05,2]
[343667060,1732813994909,-500.0,9.996e-05,2]
[343667061,1732813994931,-181.75,9.996e-05,2]
[343667062,1732813994958,-500.0,9.996e-05,2]
[343667063,1732813994981,-500.0,9.996e-05,2]
[343667064,1732813995007,-500.0,9.996e-05,2]
[343667065,1732813995032,-500.0,9.996e-05,2]
[343667066,1732813995053,-500.0,9.996e-05,2]
[343667067,1732813995076,-500.0,9.996e-05,2]
[343667068,1732813995098,-500.0,9.996e-05,2]
[343667069,1732813995120,-500.0,9.996e-05,2]
[343667070,1732813995144,-558.22125516,9.996e-05,2]
[343667071,1732813995166,-567.83,9.996e-05,2]
[343667072,1732813995188,-567.83,9.996e-05,2]
[343667073,1732813995211,-567.83,9.996e-05,2]
[343667074,1732813995232,-508.53,9.997e-05,2]
[343667075,1732813995255,-500.0,9.997e-05,2]
[343667076,1732813995276,-211.05719451,9.997e-05,2]
[343667077,1732813995298,-500.0,9.997e-05,2]
[343667078,1732813995320,-500.0,9.997e-05,2]
[343667079,1732813995343,-500.0,9.997e-05,2]
[343667080,1732813995370,-500.0,9.997e-05,2]
[343667081,1732813995393,-6666.66,9.997e-05,2]
[343667082,1732813995415,-6666.66,9.997e-05,2]
[343667083,1732813995438,-6666.66,9.997e-05,2]
[343667084,1732813995459,-6666.66,9.997e-05,2]
[343667085,1732813995481,-567.83,9.997e-05,2]
[343667086,1732813995502,-567.83,9.997e-05,2]
[343667087,1732813995523,-567.83,9.997e-05,2]
[343667088,1732813995546,-6666.66,9.998e-05,2]
[343667089,1732813995568,-567.83,9.998e-05,2]
[343667090,1732813995589,-567.83,9.998e-05,2]
[343667091,1732813995610,-1962.47,9.999e-05,2]
[343667092,1732813995631,-6666.66,9.999e-05,2]
[343667093,1732813995654,-6666.66,9.999e-05,2]
[343667094,1732813995675,-6666.66,9.999e-05,2]
[343667095,1732813995696,-6666.66,9.999e-05,2]
[343667096,1732813995718,-6666.66,9.999e-05,2]
[343667097,1732813995740,-6666.66,9.999e-05,2]
[343667098,1732813995761,-6666.66,9.999e-05,2]
[343667099,1732813995786,-6666.66,9.999e-05,2]
[343667100,1732813995808,-6666.66,9.999e-05,2]
[343667101,1732813995832,-6666.66,9.999e-05,2]
[343667102,1732813995854,-6666.66,9.999e-05,2]
[343667103,1732813995875,-6666.66,9.999e-05,2]
[343667104,1732813995896,-6666.66,9.999e-05,2]
[343667105,1732813995918,-6666.66,9.999e-05,2]
[343667106,1732813995940,-6666.66,9.999e-05,2]
[343667107,1732813995963,-6666.66,9.999e-05,2]
[343667108,1732813995983,-6666.66,9.999e-05,2]
[343667109,1732813996007,-6666.66,9.999e-05,2]
[343667110,1732813996028,-6666.82,9.999e-05,2]
[343667111,1732813996050,-567.83,9.999e-05,2]
[343667112,1732813996072,-567.83,9.999e-05,2]
[343667113,1732813996094,-567.83,9.999e-05,2]
[343667114,1732813996115,-567.83,9.999e-05,2]
[343667115,1732813996136,-567.83,9.999e-05,2]
[343667116,1732813996165,-567.83,9.999e-05,2]
[343667117,1732813996191,-567.83,9.999e-05,2]
[343667118,1732813996213,-567.83,9.999e-05,2]
[343667119,1732813996235,-567.83,9.999e-05,2]
[343667120,1732813996258,-567.83,9.999e-05,2]
[343667121,1732813996280,-567.83,9.999e-05,2]
[343667122,1732813996303,-567.83,9.999e-05,2]
[343667123,1732813996324,-567.83,9.999e-05,2]
[343667124,1732813996346,-567.83,9.999e-05,2]
[343667125,1732813996369,-567.83,9.999e-05,2]
[343667126,1732813996392,-567.86,9.999e-05,2]
[343667127,1732813996416,-543.0,9.999e-05,2]
[343667128,1732813996441,-147268.17255759,9.999e-05,2]
[343667129,1732813996462,-2186.4398282,9.999e-05,2]
[343667130,1732813996485,-113752.68626453,0.0001,2]
[343667134,1732814323397,50000.0,0.00011,10]
[343667137,1732814663287,50000.0,0.00011,10]
[343667145,1732814803088,-196.91293317,9.049e-05,2]
[343667186,1732815032701,-0.49500351,8.219e-05,2]
[343667189,1732815032737,-1202.16499649,8.219e-05,2]
[343667191,1732815032746,-212.38886658,8.975e-05,2]
[343667193,1732815032755,-259.74592686,9.049e-05,2]
[343667195,1732815032767,-543.34113997,9.049e-05,2]
[343667196,1732815032776,-250.0,9.095e-05,2]
[343667197,1732815032786,-230.84,9.176e-05,2]
[343667198,1732815032796,-200.0,9.589e-05,2]
[343667199,1732815032806,-30.02999341,9.772e-05,2]
[343667200,1732815032819,-269.97000659,9.772e-05,2]
[343667201,1732815032829,-150.0,9.872e-05,2]
[343667202,1732815032839,-2082.36999301,9.873e-05,2]
[343667203,1732815032859,-279.69657276,9.873e-05,2]
[343667204,1732815032870,-1075.43,9.873e-05,2]
[343667205,1732815032883,-965.15130882,9.873e-05,2]
[343667206,1732815032900,-12636.9113559,9.873e-05,2]
[343667207,1732815032916,-272.72403646,9.873e-05,2]
[343667212,1732815038028,-32612.38483305,9.873e-05,2]
[343667213,1732815038039,-41138.7274,9.89e-05,2]
[343667214,1732815038048,-2000.0,9.89e-05,2]
[343667215,1732815038058,-1000.0,9.89e-05,2]
[343667216,1732815038067,-16227.2143,9.899e-05,2]
[343667217,1732815038078,-633.0,9.9e-05,2]
[343667218,1732815038091,-2304.4912,9.9e-05,2]
[343667219,1732815038101,-67451.5966,9.9e-05,2]
[343667220,1732815038110,-500.0,9.973e-05,2]
[343667221,1732815038120,-200.0,9.974e-05,2]
[343667222,1732815038132,-4561.22080277,9.976e-05,2]
[343667223,1732815038142,-4561.22080277,9.978e-05,2]
[343667224,1732815038152,-4561.22080277,9.979e-05,2]
[343667225,1732815038165,-200.0,9.98e-05,2]
[343667226,1732815038175,-200.0,9.983e-05,2]
[343667227,1732815038185,-4561.22080277,9.986e-05,2]
[343667228,1732815038194,-1789.383,9.989e-05,2]
[343667229,1732815038204,-181.51012964,9.989e-05,2]
[343667230,1732815038216,-200.0,9.989e-05,2]
[343667231,1732815038225,-200.0,9.991e-05,2]
[343667232,1732815038235,-4561.22080277,9.995e-05,2]
[343667233,1732815038245,-500.0,9.996e-05,2]
[343667234,1732815038254,-500.0,9.996e-05,2]
[343667235,1732815038264,-500.0,9.996e-05,2]
[343667236,1732815038274,-500.0,9.997e-05,2]
[343667237,1732815038284,-551.43381379,9.997e-05,2]
[343667238,1732815038293,-500.0,9.997e-05,2]
[343667239,1732815038303,-542.93,9.997e-05,2]
[343667240,1732815038314,-500.0,9.997e-05,2]
[343667241,1732815038324,-500.38938899,9.997e-05,2]
[343667242,1732815038334,-1036.4096137,9.999e-05,3]
[343667243,1732815038343,-1036.4096137,9.999e-05,3]
[343667244,1732815038352,-1036.4096137,9.999e-05,3]
[343667245,1732815038361,-1036.40961369,9.999e-05,3]
[343667246,1732815038371,-150.01,9.999e-05,2]
[343667247,1732815038380,-11468.11450664,9.999e-05,2]
[343667248,1732815038390,-500.0,9.999e-05,2]
[343667249,1732815038399,-556.48267801,9.999e-05,2]
[343667250,1732815038409,-545.46,9.999e-05,2]
[343667251,1732815038418,-500.0,9.999e-05,2]
[343667252,1732815038427,-639.41,9.999e-05,2]
[343667253,1732815038437,-500.0,9.999e-05,2]
[343667254,1732815038447,-500.0,9.999e-05,2]
[343667255,1732815038456,-500.0,9.999e-05,2]
[343667256,1732815038467,-192.32,9.999e-05,2]
[343667257,1732815038477,-500.0,9.999e-05,2]
[343667258,1732815038487,-500.0,9.999e-05,2]
[343667262,1732815038708,-537.75185466,9.999e-05,2]
[343667263,1732815038720,-500.0,9.999e-05,2]
[343667264,1732815038729,-500.0,9.999e-05,2]
[343667265,1732815038739,-500.0,9.999e-05,2]
[343667266,1732815038748,-500.0,9.999e-05,2]
[343667267,1732815038758,-500.0,9.999e-05,2]
[343667268,1732815038767,-500.0,9.999e-05,2]
[343667269,1732815038776,-500.0,9.999e-05,2]
[343667270,1732815038785,-500.0,9.999e-05,2]
[343667271,1732815038794,-500.0,9.999e-05,2]
[343667272,1732815038804,-630.18,9.999e-05,2]
[343667274,1732815038813,-500.0,9.999e-05,2]
[343667275,1732815038823,-500.0,9.999e-05,2]
[343667276,1732815038832,-500.0,9.999e-05,2]
[343667277,1732815038841,-208.47,9.999e-05,2]
[343667278,1732815038850,-500.0,9.999e-05,2]
[343667279,1732815038859,-500.0,9.999e-05,2]
[343667280,1732815038869,-500.0,9.999e-05,2]
[343667281,1732815038878,-500.0,9.999e-05,2]
[343667282,1732815038888,-500.0,9.999e-05,2]
[343667283,1732815038897,-500.0,9.999e-05,2]
[343667284,1732815038906,-344.78767594,9.999e-05,2]
[343667285,1732815038915,-461.37589881,9.999e-05,2]
[343667286,1732815038925,-4561.22080277,9.999e-05,2]
[343667287,1732815038934,-19240.39089727,9.999e-05,2]
[343667288,1732815038945,-534.0,9.999e-05,2]
[343667289,1732815038956,-327.80129445,9.999e-05,2]
[343667290,1732815038966,-123634.0862788,9.999e-05,2]
[343667291,1732815038975,-1093.2199141,9.999e-05,2]
[343667292,1732815038984,-887007.71575179,0.0001,2]
[343667293,1732815039019,-546.10928797,0.0001,2]
[343667294,1732815039031,-29390.00060217,0.0001,2]
[343667302,1732815039914,-21406.80144279,0.0001,2]
[343667303,1732815040042,-358.32279999,0.0001,2]
[343667304,1732815040053,-598.68442652,0.0001,2]
[343667305,1732815040065,-2193.21,0.0001,2]
[343667306,1732815040230,-18655.75707968,0.0001,2]
[343667307,1732815040241,-880.81138908,0.0001,2]
[343667311,1732815043470,-9417.30000002,0.0001,2]
[343667312,1732815043482,-35556.557296,0.0001,2]